fUST/lending_fUST_20250808
["ID","MTS","AMOUNT","RATE_DAILY","PERIOD"]
[377882973,1754596236617,-460.0,0.00021917,2]
[377882974,1754596236626,-460.0,0.00021917,2]
[377882975,1754596236635,-460.0,0.00021917,2]
[377882976,1754596236644,-460.0,0.00021917,2]
[377882977,1754596236652,-460.0,0.00021917,2]
[377882978,1754596236662,-460.0,0.00021917,2]
[377882979,1754596236671,-460.0,0.00021917,2]
[377882980,1754596236680,-472.74,0.00021917,2]
[377882981,1754596236688,-460.0,0.00021917,2]
[377882982,1754596236700,-460.0,0.00021917,2]
[377882983,1754596236709,-460.0,0.00021917,2]
[377882984,1754596236718,-460.0,0.00021917,2]
[377882985,1754596236728,-532.14,0.00021917,2]
[377882986,1754596236737,-460.0,0.00021917,2]
[377882987,1754596236747,-460.0,0.00021917,2]
[377882988,1754596236757,-460.0,0.00021917,2]
[377882989,1754596236766,-184.25224809,0.00021917,2]
[377882990,1754596236776,-460.0,0.00021917,2]
[377882991,1754596236786,-460.0,0.00021917,2]
[377882992,1754596236796,-460.0,0.00021917,2]
[377882993,1754596236805,-460.0,0.00021917,2]
[377882994,1754596236824,-475.28,0.00021917,2]
[377882995,1754596236834,-460.0,0.00021917,2]
[377882996,1754596236844,-1452.59,0.00021917,2]
[377882997,1754596236854,-500.0,0.00021917,2]
[377882998,1754596236864,-460.0,0.00021917,2]
[377882999,1754596236874,-460.0,0.00021917,2]
[377883000,1754596236883,-465.5345339,0.00021917,2]
[377883001,1754596236893,-523.96763473,0.00021917,2]
[377883047,1754596237903,-584.15236527,0.00021917,2]
[377883048,1754596237913,-355.11154633,0.00021917,2]
[377883051,1754596237929,-226.47671446,0.00021917,2]
[377883053,1754596237939,-466.83496548,0.00021917,2]
[377883054,1754596237949,-480.54564214,0.00021917,2]
[377883056,1754596237959,-460.0,0.00021917,2]
[377883057,1754596237968,-467.04971687,0.00021917,2]
[377883059,1754596237977,-460.0,0.00021917,2]
[377883061,1754596237987,-460.0,0.00021917,2]
[377883063,1754596237996,-503.29,0.00021917,2]
[377883065,1754596238006,-460.0,0.00021917,2]
[377883066,1754596238015,-460.0,0.00021917,2]
[377883067,1754596238025,-460.0,0.00021917,2]
[377883068,1754596238034,-460.0,0.00021917,2]
[377883069,1754596238044,-460.0,0.00021917,2]
[377883070,1754596238053,-460.0,0.00021917,2]
[377883071,1754596238063,-570.0,0.00021917,2]
[377883072,1754596238072,-460.0,0.00021917,2]
[377883073,1754596238081,-470.98085751,0.00021917,2]
[377883074,1754596238091,-460.0,0.00021917,2]
[377883075,1754596238101,-830.69,0.00021917,2]
[377883076,1754596238110,-486.31870009,0.00021917,2]
[377883077,1754596238119,-460.0,0.00021917,2]
[377883078,1754596238128,-460.0,0.00021917,2]
[377883079,1754596238137,-460.0,0.00021917,2]
[377883080,1754596238148,-460.0,0.00021917,2]
[377883081,1754596238158,-64.86165436,0.00021917,2]
[377883215,1754596242864,-166.33671042,0.00021901,2]
[377883216,1754596242874,-395.13834564,0.00021917,2]
[377883217,1754596242884,-653.95,0.00021917,2]
[377883218,1754596242893,-682.65,0.00021917,2]
[377883219,1754596242903,-460.0,0.00021917,2]
[377883220,1754596242912,-460.0,0.00021917,2]
[377883221,1754596242922,-2044.53,0.00021917,2]
[377883222,1754596242931,-485.44,0.00021917,2]
[377883223,1754596242940,-477.02278304,0.00021917,2]
[377883224,1754596242951,-460.0,0.00021917,2]
[377883225,1754596242961,-460.0,0.00021917,2]
[377883226,1754596242970,-460.0,0.00021917,2]
[377883227,1754596242979,-460.0,0.00021917,2]
[377883228,1754596242988,-433.62888201,0.00021917,2]
[377883257,1754596292284,666.0,0.00020951,2]
[377883267,1754596481255,1500.0,0.00030137,120]
[377883272,1754596582216,8131.7872,0.00020916,2]
[377883273,1754596582242,16768.2128,0.00020916,2]
[377883275,1754596590374,3231.7872,0.00021481,2]
[377883276,1754596590396,1768.2128,0.00021481,2]
[377883277,1754596605553,5000.0,0.00021481,2]
[377883278,1754596620890,5000.0,0.00021481,2]
[377883279,1754596636055,5000.0,0.00021481,2]
[377883284,1754596763407,497.487591,0.00013699,2]
[377883285,1754596763856,497.487591,0.00020187,2]
[377883288,1754596829204,2236.812018,0.00020902,2]
[377883289,1754596829225,3394.0626878,0.00020902,2]
[377883298,1754596881409,5530.2385083,0.00020915,2]
[377883299,1754596897994,230.86099219,0.00019817,2]
[377883300,1754596923268,5000.0,0.00019178,2]
[377883305,1754597075326,1459.330234,0.00020913,2]
[377883311,1754597199471,278.81609366,0.00019381,2]
[377883315,1754597327493,175.487875,0.00020812,2]
[377883335,1754597432181,-2071.2875119,0.00021717,2]
[377883336,1754597432195,-1790.71898847,0.00021717,2]
[377883337,1754597432205,-1200.0,0.00021814,2]
[377883338,1754597432215,-1200.0,0.00021815,2]
[377883339,1754597432225,-300.0,0.00021815,2]
[377883340,1754597432237,-300.0,0.00021815,2]
[377883341,1754597432247,-300.0,0.00021815,2]
[377883342,1754597432256,-11736.0,0.00021816,2]
[377883343,1754597432265,-500.0,0.00021816,2]
[377883344,1754597432274,-500.0,0.00021816,2]
[377883345,1754597432284,-161.32437421,0.00021816,2]
[377883346,1754597432293,-500.0,0.00021816,2]
[377883347,1754597432302,-500.0,0.00021816,2]
[377883348,1754597432311,-552.37858907,0.00021816,2]
[377883349,1754597432320,-417.82124285,0.00021816,2]
[377883350,1754597432328,-2625.14142249,0.00021817,3]
[377883352,1754597432349,-16609.24745342,0.00021817,3]
[377883355,1754597432358,-461.3695942,0.00021817,3]
[377883357,1754597432367,-9745.81588302,0.00021817,3]
[377883492,1754597437944,-500.0,0.00021815,2]
[377883494,1754597437954,-500.0,0.00021815,2]
[377883496,1754597437964,-502.65015297,0.00021815,2]
[377883498,1754597437973,-500.0,0.00021815,2]
[377883500,1754597437982,-500.0,0.00021815,2]
[377883502,1754597437991,-500.0,0.00021815,2]
[377883504,1754597438000,-500.0,0.00021815,2]
[377883506,1754597438010,-500.0,0.00021815,2]
[377883508,1754597438019,-500.0,0.00021815,2]
[377883510,1754597438028,-475.94995835,0.00021815,2]
[377883512,1754597438037,-354.77064009,0.00021815,2]
[377883514,1754597438048,-196.0847181,0.00021815,2]
[377883516,1754597438057,-500.0,0.00021815,2]
[377883518,1754597438068,-2915.08851111,0.00021817,3]
[377883520,1754597438078,-215.31718835,0.00021817,3]
[377883522,1754597438087,-815.61,0.00021907,3]
[377883524,1754597438096,-815.65,0.00021907,3]
[377883527,1754597438105,-220.3946588,0.00021909,2]
[377883530,1754597438114,-500.0,0.00021916,2]
[377883533,1754597438123,-561.46383949,0.00021916,2]
[377883536,1754597438133,-500.0,0.00021916,2]
[377883538,1754597438142,-500.0,0.00021916,2]
[377883540,1754597438151,-500.0,0.00021916,2]
[377883542,1754597438161,-500.0,0.00021916,2]
[377883544,1754597438171,-500.0,0.00021916,2]
[377883546,1754597438180,-500.0,0.00021916,2]
[377883548,1754597438190,-500.0,0.00021916,2]
[377883550,1754597438200,-500.0,0.00021916,2]
[377883558,1754597438208,-197.79797985,0.00021916,2]
[377883559,1754597438444,-256.54174224,0.00021916,2]
[377883560,1754597438453,-5548.15825776,0.00021917,2]
[377883579,1754597440307,-1673.58053445,0.00021917,2]
[377883580,1754597440317,-460.0,0.00021917,2]
[377883581,1754597440327,-460.0,0.00021917,2]
[377883582,1754597440337,-460.0,0.00021917,2]
[377883583,1754597440346,-460.0,0.00021917,2]
[377883584,1754597440355,-460.0,0.00021917,2]
[377883585,1754597440365,-460.0,0.00021917,2]
[377883586,1754597440374,-460.0,0.00021917,2]
[377883587,1754597440384,-294.69382481,0.00021917,2]
[377883588,1754597440394,-460.0,0.00021917,2]
[377883589,1754597440404,-460.0,0.00021917,2]
[377883590,1754597440414,-445.83795269,0.00021917,2]
[377883591,1754597440423,-466.38146969,0.00021917,2]
[377883592,1754597440434,-460.0,0.00021917,2]
[377883593,1754597440443,-460.0,0.00021917,2]
[377883594,1754597440453,-460.0,0.00021917,2]
[377883595,1754597440463,-460.0,0.00021917,2]
[377883596,1754597440472,-460.0,0.00021917,2]
[377883597,1754597440485,-461.04516896,0.00021917,2]
[377883598,1754597440495,-300.0,0.00021917,2]
[377883599,1754597440504,-460.0,0.00021917,2]
[377883600,1754597440513,-462.12762289,0.00021917,2]
[377883601,1754597440523,-461.77916837,0.00021917,2]
[377883602,1754597440532,-460.0,0.00021917,2]
[377883603,1754597440541,-460.0,0.00021917,2]
[377883604,1754597440551,-460.0,0.00021917,2]
[377883605,1754597440560,-556.5114077,0.00021917,2]
[377883606,1754597440570,-460.25522853,0.00021917,2]
[377883607,1754597440579,-460.0,0.00021917,2]
[377883608,1754597440588,-460.0,0.00021917,2]
[377883609,1754597440597,-460.0,0.00021917,2]
[377883610,1754597440607,-460.0,0.00021917,2]
[377883611,1754597440621,-460.0,0.00021917,2]
[377883612,1754597440631,-460.0,0.00021917,2]
[377883613,1754597440640,-460.0,0.00021917,2]
[377883614,1754597440649,-460.0,0.00021917,2]
[377883615,1754597440659,-460.0,0.00021917,2]
[377883616,1754597440669,-460.0,0.00021917,2]
[377883617,1754597440678,-592.45555436,0.00021917,2]
[377883618,1754597440688,-460.0,0.00021917,2]
[377883619,1754597440698,-609.28818802,0.00021917,2]
[377883620,1754597440707,-500.0,0.00021917,2]
[377883621,1754597440717,-460.0,0.00021917,2]
[377883622,1754597440726,-460.0,0.00021917,2]
[377883623,1754597440736,-460.0,0.00021917,2]
[377883624,1754597440745,-460.0,0.00021917,2]
[377883625,1754597440755,-460.0,0.00021917,2]
[377883626,1754597440764,-465.08729454,0.00021917,2]
[377883627,1754597440773,-460.0,0.00021917,2]
[377883628,1754597440783,-203.88558554,0.00021917,2]
[377883629,1754597440793,-460.0,0.00021917,2]
[377883630,1754597440802,-460.0,0.00021917,2]
[377883631,1754597440812,-460.0,0.00021917,2]
[377883632,1754597440821,-460.0,0.00021917,2]
[377883633,1754597440830,-231.69998387,0.00021917,2]
[377883634,1754597440840,-460.0,0.00021917,2]
[377883635,1754597440849,-500.0,0.00021917,2]
[377883636,1754597440858,-460.0,0.00021917,2]
[377883637,1754597440867,-460.0,0.00021917,2]
[377883638,1754597440877,-460.0,0.00021917,2]
[377883639,1754597440887,-460.0,0.00021917,2]
[377883640,1754597440896,-460.0,0.00021917,2]
[377883641,1754597440906,-460.0,0.00021917,2]
[377883642,1754597440915,-460.0,0.00021917,2]
[377883643,1754597440925,-460.0,0.00021917,2]
[377883644,1754597440934,-460.0,0.00021917,2]
[377883645,1754597440947,-460.0,0.00021917,2]
[377883646,1754597440956,-460.0,0.00021917,2]
[377883647,1754597440965,-460.0,0.00021917,2]
[377883648,1754597440974,-469.74,0.00021917,2]
[377883649,1754597440984,-400.0,0.00021917,2]
[377883650,1754597440994,-195.04429295,0.00021917,2]
[377883651,1754597441003,-318.61372752,0.00021917,2]
[377883652,1754597441013,-460.0,0.00021917,2]
[377883653,1754597441022,-460.0,0.00021917,2]
[377883654,1754597441032,-460.0,0.00021917,2]
[377883655,1754597441043,-460.0,0.00021917,2]
[377883656,1754597441053,-460.0,0.00021917,2]
[377883657,1754597441065,-460.0,0.00021917,2]
[377883658,1754597441076,-460.0,0.00021917,2]
[377883659,1754597441086,-460.0,0.00021917,2]
[377883660,1754597441097,-460.0,0.00021917,2]
[377883661,1754597441108,-460.0,0.00021917,2]
[377883662,1754597441119,-460.0,0.00021917,2]
[377883663,1754597441129,-460.0,0.00021917,2]
[377883664,1754597441139,-460.0,0.00021917,2]
[377883665,1754597441150,-460.0,0.00021917,2]
[377883666,1754597441159,-460.0,0.00021917,2]
[377883667,1754597441169,-460.0,0.00021917,2]
[377883668,1754597441178,-460.0,0.00021917,2]
[377883669,1754597441188,-460.0,0.00021917,2]
[377883670,1754597441202,-416.76014911,0.00021917,2]
[377883671,1754597441212,-460.0,0.00021917,2]
[377883672,1754597441222,-460.0,0.00021917,2]
[377883673,1754597441232,-460.0,0.00021917,2]
[377883674,1754597441242,-460.0,0.00021917,2]
[377883675,1754597441252,-460.0,0.00021917,2]
[377883676,1754597441262,-460.0,0.00021917,2]
[377883677,1754597441273,-460.0,0.00021917,2]
[377883678,1754597441283,-460.0,0.00021917,2]
[377883679,1754597441294,-460.0,0.00021917,2]
[377883680,1754597441304,-460.0,0.00021917,2]
[377883681,1754597441315,-193.11932337,0.00021917,2]
[377883682,1754597441325,-460.0,0.00021917,2]
[377883683,1754597441335,-460.0,0.00021917,2]
[377883684,1754597441345,-460.0,0.00021917,2]
[377883685,1754597441355,-461.61691745,0.00021917,2]
[377883686,1754597441364,-460.0,0.00021917,2]
[377883687,1754597441374,-460.0,0.00021917,2]
[377883688,1754597441383,-460.0,0.00021917,2]
[377883689,1754597441394,-460.0,0.00021917,2]
[377883690,1754597441403,-387.43101359,0.00021917,2]
[377883691,1754597441414,-460.0,0.00021917,2]
[377883692,1754597441423,-460.0,0.00021917,2]
[377883693,1754597441433,-460.0,0.00021917,2]
[377883694,1754597441443,-460.0,0.00021917,2]
[377883695,1754597441454,-460.0,0.00021917,2]
[377883696,1754597441463,-199.6505479,0.00021917,2]
[377883697,1754597441476,-460.0,0.00021917,2]
[377883698,1754597441487,-460.0,0.00021917,2]
[377883699,1754597441496,-460.0,0.00021917,2]
[377883700,1754597441506,-460.0,0.00021917,2]
[377883701,1754597441515,-204.7095062,0.00021917,2]
[377883702,1754597441524,-460.0,0.00021917,2]
[377883703,1754597441533,-460.0,0.00021917,2]
[377883704,1754597441543,-460.0,0.00021917,2]
[377883705,1754597441552,-460.0,0.00021917,2]
[377883706,1754597441561,-468.38356573,0.00021917,2]
[377883707,1754597441571,-340.30197178,0.00021917,2]
[377884012,1754597446076,-318.03780547,0.00021916,2]
[377884013,1754597446088,-119.69802822,0.00021917,2]
[377884014,1754597446100,-460.0,0.00021917,2]
[377884015,1754597446113,-460.0,0.00021917,2]
[377884017,1754597446126,-460.0,0.00021917,2]
[377884018,1754597446138,-463.58825085,0.00021917,2]
[377884019,1754597446149,-460.0,0.00021917,2]
[377884020,1754597446160,-460.0,0.00021917,2]
[377884022,1754597446172,-460.0,0.00021917,2]
[377884024,1754597446183,-460.0,0.00021917,2]
[377884027,1754597446195,-460.0,0.00021917,2]
[377884029,1754597446212,-460.0,0.00021917,2]
[377884031,1754597446225,-460.0,0.00021917,2]
[377884033,1754597446237,-460.0,0.00021917,2]
[377884036,1754597446249,-460.0,0.00021917,2]
[377884038,1754597446262,-460.0,0.00021917,2]
[377884040,1754597446273,-460.0,0.00021917,2]
[377884042,1754597446283,-151.0,0.00021917,2]
[377884044,1754597446293,-460.0,0.00021917,2]
[377884046,1754597446303,-460.0,0.00021917,2]
[377884048,1754597446313,-460.0,0.00021917,2]
[377884051,1754597446325,-460.0,0.00021917,2]
[377884053,1754597446337,-460.0,0.00021917,2]
[377884055,1754597446349,-460.0,0.00021917,2]
[377884057,1754597446362,-580.32,0.00021917,2]
[377884060,1754597446373,-460.0,0.00021917,2]
[377884062,1754597446385,-460.0,0.00021917,2]
[377884064,1754597446395,-460.83031915,0.00021917,2]
[377884066,1754597446405,-460.0,0.00021917,2]
[377884068,1754597446416,-460.0,0.00021917,2]
[377884070,1754597446427,-460.0,0.00021917,2]
[377884072,1754597446439,-460.0,0.00021917,2]
[377884074,1754597446451,-460.0,0.00021917,2]
[377884077,1754597446462,-460.0,0.00021917,2]
[377884079,1754597446473,-460.0,0.00021917,2]
[377884081,1754597446483,-460.0,0.00021917,2]
[377884083,1754597446494,-460.0,0.00021917,2]
[377884085,1754597446504,-460.0,0.00021917,2]
[377884087,1754597446514,-460.0,0.00021917,2]
[377884089,1754597446525,-86.03814371,0.00021917,2]
[377884092,1754597446543,-373.96185629,0.00021917,2]
[377884094,1754597446553,-827.71,0.00021917,2]
[377884096,1754597446566,-460.0,0.00021917,2]
[377884099,1754597446577,-460.0,0.00021917,2]
[377884101,1754597446587,-460.0,0.00021917,2]
[377884103,1754597446598,-460.0,0.00021917,2]
[377884105,1754597446613,-460.0,0.00021917,2]
[377884107,1754597446623,-460.0,0.00021917,2]
[377884109,1754597446633,-488.29088345,0.00021917,2]
[377884111,1754597446643,-460.0,0.00021917,2]
[377884113,1754597446655,-745.55,0.00021917,2]
[377884116,1754597446666,-460.0,0.00021917,2]
[377884118,1754597446676,-460.0,0.00021917,2]
[377884120,1754597446686,-460.0,0.00021917,2]
[377884122,1754597446699,-460.0,0.00021917,2]
[377884124,1754597446711,-460.0,0.00021917,2]
[377884126,1754597446722,-460.0,0.00021917,2]
[377884129,1754597446733,-460.0,0.00021917,2]
[377884131,1754597446744,-460.0,0.00021917,2]
[377884133,1754597446754,-593.59,0.00021917,2]
[377884135,1754597446765,-460.0,0.00021917,2]
[377884137,1754597446776,-460.0,0.00021917,2]
[377884139,1754597446786,-460.0,0.00021917,2]
[377884141,1754597446796,-461.14937447,0.00021917,2]
[377884143,1754597446807,-460.0,0.00021917,2]
[377884145,1754597446818,-460.0,0.00021917,2]
[377884148,1754597446828,-460.0,0.00021917,2]
[377884150,1754597446838,-460.0,0.00021917,2]
[377884152,1754597446849,-460.0,0.00021917,2]
[377884154,1754597446859,-886.72,0.00021917,2]
[377884156,1754597446870,-460.0,0.00021917,2]
[377884158,1754597446881,-460.0,0.00021917,2]
[377884160,1754597446891,-532.85236991,0.00021917,2]
[377884162,1754597446901,-460.0,0.00021917,2]
[377884164,1754597446911,-460.0,0.00021917,2]
[377884166,1754597446920,-460.0,0.00021917,2]
[377884171,1754597446954,-460.0,0.00021917,2]
[377884173,1754597446965,-460.0,0.00021917,2]
[377884175,1754597446975,-2930.21,0.00021917,2]
[377884177,1754597446987,-460.0,0.00021917,2]
[377884179,1754597446998,-460.0,0.00021917,2]
[377884181,1754597447008,-460.0,0.00021917,2]
[377884183,1754597447018,-460.0,0.00021917,2]
[377884186,1754597447029,-460.0,0.00021917,2]
[377884188,1754597447039,-460.0,0.00021917,2]
[377884190,1754597447050,-460.0,0.00021917,2]
[377884192,1754597447060,-460.0,0.00021917,2]
[377884194,1754597447071,-460.0,0.00021917,2]
[377884196,1754597447083,-460.0,0.00021917,2]
[377884198,1754597447096,-460.0,0.00021917,2]
[377884200,1754597447106,-460.0,0.00021917,2]
[377884202,1754597447117,-460.0,0.00021917,2]
[377884205,1754597447128,-460.0,0.00021917,2]
[377884207,1754597447139,-460.0,0.00021917,2]
[377884209,1754597447151,-460.0,0.00021917,2]
[377884211,1754597447162,-460.0,0.00021917,2]
[377884213,1754597447172,-460.0,0.00021917,2]
[377884215,1754597447183,-460.0,0.00021917,2]
[377884218,1754597447194,-464.29913247,0.00021917,2]
[377884220,1754597447206,-460.0,0.00021917,2]
[377884222,1754597447217,-612.41,0.00021917,2]
[377884224,1754597447228,-460.0,0.00021917,2]
[377884226,1754597447238,-461.46658237,0.00021917,2]
[377884228,1754597447250,-460.0,0.00021917,2]
[377884230,1754597447260,-460.0,0.00021917,2]
[377884232,1754597447271,-460.0,0.00021917,2]
[377884235,1754597447282,-460.0,0.00021917,2]
[377884237,1754597447292,-478.25906086,0.00021917,2]
[377884239,1754597447302,-460.0,0.00021917,2]
[377884241,1754597447313,-460.0,0.00021917,2]
[377884243,1754597447323,-788.22,0.00021917,2]
[377884245,1754597447333,-460.0,0.00021917,2]
[377884247,1754597447343,-460.0,0.00021917,2]
[377884249,1754597447355,-460.0,0.00021917,2]
[377884251,1754597447365,-349.46136917,0.00021917,2]
[377884253,1754597447376,-575.16260836,0.00021917,2]
[377884255,1754597447387,-460.0,0.00021917,2]
[377884258,1754597447398,-471.57455254,0.00021917,2]
[377884260,1754597447408,-460.0,0.00021917,2]
[377884262,1754597447419,-460.0,0.00021917,2]
[377884264,1754597447429,-270.39051488,0.00021917,2]
[377884386,1754597448600,-189.60948512,0.00021917,2]
[377884389,1754597448612,-151.0,0.00021917,2]
[377884390,1754597448623,-460.0,0.00021917,2]
[377884392,1754597448632,-151.0,0.00021917,2]
[377884394,1754597448642,-460.0,0.00021917,2]
[377884397,1754597448653,-460.0,0.00021917,2]
[377884398,1754597448663,-151.0,0.00021917,2]
[377884401,1754597448682,-500.0,0.00021917,2]
[377884402,1754597448691,-151.0,0.00021917,2]
[377884404,1754597448701,-460.0,0.00021917,2]
[377884406,1754597448711,-151.0,0.00021917,2]
[377884408,1754597448720,-500.0,0.00021917,2]
[377884410,1754597448730,-460.0,0.00021917,2]
[377884412,1754597448739,-190.1135927,0.00021917,2]
[377884414,1754597448748,-460.0,0.00021917,2]
[377884416,1754597448757,-460.0,0.00021917,2]
[377884418,1754597448767,-561.06,0.00021917,2]
[377884420,1754597448776,-500.0,0.00021917,2]
[377884422,1754597448786,-460.0,0.00021917,2]
[377884424,1754597448795,-153.19702654,0.00021917,2]
[377884426,1754597448804,-460.0,0.00021917,2]
[377884428,1754597448814,-1442.32,0.00021917,2]
[377884430,1754597448823,-500.0,0.00021917,2]
[377884432,1754597448832,-460.0,0.00021917,2]
[377884434,1754597448842,-151.0,0.00021917,2]
[377884436,1754597448851,-460.0,0.00021917,2]
[377884438,1754597448861,-462.85932139,0.00021917,2]
[377884440,1754597448871,-205.69227694,0.00021917,2]
[377884442,1754597448880,-460.0,0.00021917,2]
[377884443,1754597448891,-460.0,0.00021917,2]
[377884444,1754597448900,-151.0,0.00021917,2]
[377884445,1754597448909,-460.0,0.00021917,2]
[377884446,1754597448919,-500.0,0.00021917,2]
[377884447,1754597448928,-460.0,0.00021917,2]
[377884448,1754597448937,-151.0,0.00021917,2]
[377884449,1754597448947,-151.0,0.00021917,2]
[377884450,1754597448959,-151.0,0.00021917,2]
[377884451,1754597448969,-460.0,0.00021917,2]
[377884452,1754597448978,-151.0,0.00021917,2]
[377884453,1754597448988,-460.0,0.00021917,2]
[377884454,1754597448998,-511.36984287,0.00021917,2]
[377884455,1754597449008,-460.0,0.00021917,2]
[377884456,1754597449018,-460.0,0.00021917,2]
[377884457,1754597449027,-460.0,0.00021917,2]
[377884458,1754597449037,-460.0,0.00021917,2]
[377884459,1754597449047,-460.0,0.00021917,2]
[377884460,1754597449057,-460.0,0.00021917,2]
[377884461,1754597449067,-460.0,0.00021917,2]
[377884462,1754597449078,-460.0,0.00021917,2]
[377884463,1754597449088,-460.0,0.00021917,2]
[377884464,1754597449098,-216.35568586,0.00021917,2]
[377884465,1754597449108,-460.0,0.00021917,2]
[377884466,1754597449118,-460.0,0.00021917,2]
[377884467,1754597449128,-500.0,0.00021917,2]
[377884468,1754597449138,-460.0,0.00021917,2]
[377884469,1754597449148,-470.36420192,0.00021917,2]
[377884470,1754597449158,-460.0,0.00021917,2]
[377884471,1754597449167,-507.00798158,0.00021917,2]
[377884472,1754597449177,-625.88,0.00021917,2]
[377884473,1754597449187,-574.39064939,0.00021917,2]
[377884474,1754597449197,-460.0,0.00021917,2]
[377884475,1754597449208,-460.0,0.00021917,2]
[377884476,1754597449218,-460.0,0.00021917,2]
[377884477,1754597449229,-460.0,0.00021917,2]
[377884478,1754597449239,-460.0,0.00021917,2]
[377884479,1754597449248,-460.0,0.00021917,2]
[377884480,1754597449258,-551.2,0.00021917,2]
[377884481,1754597449267,-460.0,0.00021917,2]
[377884482,1754597449277,-646.08,0.00021917,2]
[377884483,1754597449287,-460.0,0.00021917,2]
[377884485,1754597449296,-460.0,0.00021917,2]
[377884487,1754597449306,-983.85,0.00021917,2]
[377884489,1754597449315,-460.0,0.00021917,2]
[377884491,1754597449324,-460.0,0.00021917,2]
[377884493,1754597449334,-460.0,0.00021917,2]
[377884495,1754597449343,-151.85152653,0.00021917,2]
[377884497,1754597449352,-460.0,0.00021917,2]
[377884499,1754597449361,-282.58641333,0.00021917,2]
[377884501,1754597449373,-199.64161567,0.00021917,2]
[377884503,1754597449382,-151.64325283,0.00021917,2]
[377884505,1754597449391,-460.0,0.00021917,2]
[377884507,1754597449401,-460.0,0.00021917,2]
[377884509,1754597449411,-500.0,0.00021917,2]
[377884511,1754597449420,-500.0,0.00021917,2]
[377884513,1754597449429,-494.51043664,0.00021917,2]
[377884515,1754597449438,-460.0,0.00021917,2]
[377884517,1754597449448,-460.0,0.00021917,2]
[377884519,1754597449458,-460.0,0.00021917,2]
[377884521,1754597449467,-460.0,0.00021917,2]
[377884523,1754597449477,-464.60715949,0.00021917,2]
[377884525,1754597449485,-460.0,0.00021917,2]
[377884527,1754597449495,-460.0,0.00021917,2]
[377884529,1754597449504,-460.0,0.00021917,2]
[377884531,1754597449513,-460.0,0.00021917,2]
[377884533,1754597449522,-460.0,0.00021917,2]
[377884535,1754597449531,-460.0,0.00021917,2]
[377884537,1754597449540,-460.0,0.00021917,2]
[377884539,1754597449549,-460.0,0.00021917,2]
[377884541,1754597449558,-460.0,0.00021917,2]
[377884543,1754597449568,-460.0,0.00021917,2]
[377884545,1754597449578,-212.48631088,0.00021917,2]
[377884547,1754597449587,-460.0,0.00021917,2]
[377884549,1754597449597,-460.0,0.00021917,2]
[377884551,1754597449606,-1330.75,0.00021917,2]
[377884553,1754597449619,-1000.0,0.00021917,2]
[377884555,1754597449628,-460.0,0.00021917,2]
[377884557,1754597449637,-2196.25,0.00021917,2]
[377884559,1754597449647,-2196.25,0.00021917,2]
[377884561,1754597449656,-460.0,0.00021917,2]
[377884563,1754597449665,-460.0,0.00021917,2]
[377884565,1754597449674,-460.0,0.00021917,2]